fUSD/lending_fUSD_20260413
["ID","MTS","AMOUNT","RATE_DAILY","PERIOD"]
[420367575,1776041547318,-500.0,0.0003863,15]
[420367576,1776041547343,-500.0,0.0003863,15]
[420367577,1776041547354,-628.08,0.0003863,15]
[420367578,1776041547368,-389.61149134,0.0003863,15]
[420367579,1776041547386,-710.03,0.0003863,15]
[420367580,1776041547410,-500.0,0.0003863,15]
[420367581,1776041547420,-849.78,0.0003863,15]
[420367582,1776041547430,-500.0,0.0003863,15]
[420367583,1776041547448,-500.0,0.0003863,15]
[420367584,1776041547457,-500.0,0.0003863,15]
[420367585,1776041547471,-1943.24,0.0003863,15]
[420367586,1776041547489,-500.0,0.0003863,15]
[420367587,1776041547498,-500.0,0.0003863,15]
[420367588,1776041547513,-500.0,0.0003863,15]
[420367589,1776041547523,-500.0,0.0003863,15]
[420367590,1776041547539,-500.0,0.0003863,15]
[420367591,1776041547556,-1068.31,0.0003863,15]
[420367592,1776041547575,-601.67,0.0003863,15]
[420367593,1776041547586,-500.0,0.0003863,15]
[420367594,1776041547602,-500.0,0.0003863,15]
[420367595,1776041547638,-500.0,0.0003863,15]
[420367596,1776041547654,-500.0,0.0003863,15]
[420367597,1776041547667,-763.96,0.0003863,15]
[420367598,1776041547683,-500.0,0.0003863,14]
[420367599,1776041547701,-500.0,0.0003863,15]
[420367600,1776041547711,-500.0,0.0003863,15]
[420367601,1776041547740,-500.0,0.0003863,15]
[420367602,1776041547750,-647.78,0.0003863,15]
[420367603,1776041547767,-500.0,0.0003863,15]
[420367604,1776041547797,-1381.7,0.0003863,15]
[420367605,1776041547815,-500.0,0.0003863,14]
[420367606,1776041547851,-500.0,0.0003863,15]
[420367607,1776041547864,-792.32,0.0003863,15]
[420367608,1776041547891,-527.39,0.0003863,15]
[420367609,1776041547901,-500.0,0.0003863,15]
[420367610,1776041547917,-500.0,0.0003863,15]
[420367611,1776041547937,-500.0,0.0003863,15]
[420367612,1776041547946,-500.0,0.0003863,15]
[420367613,1776041547959,-1152.6,0.0003863,15]
[420367614,1776041547981,-500.0,0.0003863,15]
[420367615,1776041547991,-500.0,0.0003863,15]
[420367616,1776041548001,-500.0,0.0003863,15]
[420367617,1776041548019,-500.0,0.0003863,15]
[420367618,1776041548031,-500.0,0.0003863,15]
[420367619,1776041548040,-969.29,0.0003863,15]
[420367620,1776041548065,-500.0,0.0003863,15]
[420367621,1776041548075,-500.0,0.0003863,15]
[420367622,1776041548084,-1217.57,0.0003863,15]
[420367623,1776041548106,-1867.56,0.0003863,15]
[420367624,1776041548117,-500.0,0.0003863,15]
[420367625,1776041548126,-500.0,0.0003863,15]
[420367626,1776041548138,-621.51,0.0003863,15]
[420367627,1776041548160,-500.0,0.0003863,15]
[420367628,1776041548170,-582.94,0.0003863,15]
[420367629,1776041548198,-503.86551822,0.0003863,15]
[420367630,1776041548207,-500.0,0.0003863,15]
[420367631,1776041548221,-500.0,0.0003863,15]
[420367632,1776041548243,-500.0,0.0003863,15]
[420367633,1776041548253,-500.0,0.0003863,15]
[420367634,1776041548264,-500.0,0.0003863,15]
[420367635,1776041548284,-1105.13,0.0003863,15]
[420367636,1776041548301,-772.66,0.0003863,15]
[420367637,1776041548315,-500.0,0.0003863,15]
[420367638,1776041548324,-500.0,0.0003863,15]
[420367639,1776041548342,-500.0,0.0003863,15]
[420367640,1776041548352,-500.0,0.0003863,15]
[420367641,1776041548375,-655.74,0.0003863,15]
[420367642,1776041548385,-580.64041109,0.0003863,15]
[420367643,1776041548397,-1081.95,0.0003863,15]
[420367644,1776041548415,-500.0,0.0003863,15]
[420367645,1776041548429,-500.0,0.0003863,15]
[420367646,1776041548442,-500.0,0.0003863,15]
[420367647,1776041548460,-500.0,0.0003863,15]
[420367648,1776041548470,-500.0,0.0003863,15]
[420367649,1776041548483,-500.0,0.0003863,15]
[420367650,1776041548494,-953.1,0.0003863,15]
[420367651,1776041548505,-500.0,0.0003863,15]
[420367652,1776041548515,-500.0,0.0003863,15]
[420367653,1776041548527,-627.16,0.0003863,15]
[420367654,1776041548537,-2804.38,0.0003863,15]
[420367655,1776041548549,-500.0,0.0003863,15]
[420367656,1776041548571,-500.0,0.0003863,15]
[420367657,1776041548588,-1274.7,0.0003863,15]
[420367658,1776041548600,-500.0,0.0003863,15]
[420367659,1776041548610,-500.0,0.0003863,15]
[420367660,1776041548626,-500.0,0.0003863,15]
[420367661,1776041548638,-232.31681917,0.0003863,15]
[420367662,1776041548657,-500.0,0.0003863,15]
[420367663,1776041548667,-2514.55,0.0003863,15]
[420367664,1776041548684,-500.0,0.0003863,15]
[420367665,1776041548696,-500.0,0.0003863,15]
[420367666,1776041548715,-719.78,0.0003863,15]
[420367667,1776041548726,-500.0,0.0003863,15]
[420367668,1776041548736,-859.84,0.0003863,2]
[420367669,1776041548753,-552.98,0.0003863,15]
[420367670,1776041548765,-914.83,0.0003863,15]
[420367671,1776041548791,-500.0,0.0003863,15]
[420367672,1776041548801,-500.0,0.0003863,15]
[420367673,1776041548818,-500.0,0.0003863,15]
[420367674,1776041548835,-710.68,0.0003863,15]
[420367675,1776041548844,-500.0,0.0003863,15]
[420367676,1776041548855,-500.0,0.0003863,15]
[420367677,1776041548882,-849.06,0.0003863,7]
[420367678,1776041548891,-1369.55,0.0003863,15]
[420367679,1776041548925,-500.0,0.0003863,15]
[420367680,1776041548935,-500.0,0.0003863,15]
[420367681,1776041548953,-1237.88,0.0003863,15]
[420367682,1776041548974,-563.87,0.0003863,15]
[420367683,1776041548983,-500.0,0.0003863,15]
[420367684,1776041549010,-788.01,0.0003863,15]
[420367685,1776041549043,-500.0,0.0003863,15]
[420367686,1776041549066,-377.84791097,0.0003863,15]
[420367687,1776041549081,-568.15,0.0003863,15]
[420367688,1776041549093,-500.0,0.0003863,15]
[420367689,1776041549113,-500.0,0.0003863,15]
[420367690,1776041549123,-500.0,0.0003863,15]
[420367691,1776041549132,-500.0,0.0003863,15]
[420367692,1776041549155,-3366.71,0.0003863,15]
[420367693,1776041549165,-923.98,0.0003863,15]
[420367694,1776041549175,-500.0,0.0003863,15]
[420367695,1776041549186,-500.0,0.0003863,15]
[420367696,1776041549228,-2088.77,0.0003863,15]
[420367697,1776041549238,-549.15,0.0003863,15]
[420367698,1776041549255,-500.0,0.0003863,15]
[420367699,1776041549267,-500.0,0.0003863,15]
[420367700,1776041549286,-500.0,0.0003863,15]
[420367701,1776041549295,-500.0,0.0003863,15]
[420367702,1776041549306,-1268.03,0.0003863,15]
[420367703,1776041549317,-500.0,0.0003863,15]
[420367704,1776041549331,-500.0,0.0003863,15]
[420367705,1776041549341,-558.39,0.0003863,15]
[420367706,1776041549353,-500.0,0.0003863,15]
[420367707,1776041549372,-500.0,0.0003863,15]
[420367708,1776041549382,-4311.22,0.0003863,15]
[420367709,1776041549394,-1218.49,0.0003863,15]
[420367710,1776041549407,-788.69,0.0003863,15]
[420367711,1776041549421,-707.14,0.0003863,15]
[420367712,1776041549433,-500.0,0.0003863,15]
[420367713,1776041549445,-500.0,0.0003863,15]
[420367714,1776041549465,-654.55,0.0003863,15]
[420367715,1776041549478,-500.0,0.0003863,15]
[420367716,1776041549502,-1877.62,0.0003863,15]
[420367717,1776041549521,-500.0,0.0003863,15]
[420367718,1776041549536,-1985.43,0.0003863,15]
[420367719,1776041549549,-500.0,0.0003863,12]
[420367720,1776041549569,-1450.56,0.0003863,15]
[420367721,1776041549597,-1299.61,0.0003863,15]
[420367722,1776041549608,-500.0,0.0003863,15]
[420367723,1776041549627,-919.99,0.0003863,15]
[420367724,1776041549641,-500.0,0.0003863,15]
[420367725,1776041549651,-500.0,0.0003863,15]
[420367726,1776041549669,-500.0,0.0003863,15]
[420367727,1776041549694,-2075.21,0.0003863,15]
[420367728,1776041549707,-352.53857982,0.0003863,15]
[420367729,1776041549722,-500.0,0.0003863,15]
[420367730,1776041549738,-579.23366248,0.0003863,15]
[420367731,1776041549751,-500.0,0.0003863,15]
[420367732,1776041549764,-500.0,0.0003863,15]
[420367733,1776041549783,-635.86234155,0.0003863,15]
[420367734,1776041549793,-500.0,0.0003863,15]
[420367735,1776041549805,-534.23,0.0003863,15]
[420367736,1776041549831,-1289.28,0.0003863,15]
[420367737,1776041549841,-500.0,0.0003863,15]
[420367738,1776041549850,-500.0,0.0003863,15]
[420367739,1776041549861,-500.0,0.0003863,15]
[420367740,1776041549874,-500.0,0.0003863,15]
[420367741,1776041549884,-500.0,0.0003863,15]
[420367742,1776041549894,-1427.37,0.0003863,15]
[420367743,1776041549905,-1530.82,0.0003863,15]
[420367744,1776041549917,-500.0,0.0003863,15]
[420367745,1776041549927,-500.0,0.0003863,15]
[420367746,1776041549937,-2046.09,0.0003863,15]
[420367747,1776041549949,-500.0,0.0003863,15]
[420367748,1776041549959,-500.0,0.0003863,15]
[420367749,1776041549969,-2529.22,0.0003863,15]
[420367750,1776041549982,-745.28,0.0003863,15]
[420367751,1776041549995,-808.37,0.0003863,15]
[420367752,1776041550005,-502.22203888,0.0003863,15]
[420367753,1776041550019,-2416.53,0.0003863,15]
[420367754,1776041550030,-906.56,0.0003863,15]
[420367755,1776041550050,-523.37,0.0003863,15]
[420367756,1776041550064,-500.0,0.0003863,15]
[420367757,1776041550075,-500.0,0.0003863,15]
[420367758,1776041550089,-504.19,0.0003863,15]
[420367759,1776041550100,-500.0,0.0003863,15]
[420367760,1776041550110,-500.0,0.0003863,15]
[420367761,1776041550124,-500.0,0.0003863,15]
[420367762,1776041550138,-500.0,0.0003863,15]
[420367763,1776041550148,-397.17050061,0.0003863,15]
[420367764,1776041550159,-500.0,0.0003863,15]
[420367765,1776041550175,-500.0,0.0003863,15]
[420367766,1776041550186,-2898.73,0.0003863,15]
[420367767,1776041550197,-500.0,0.0003863,15]
[420367768,1776041550216,-500.0,0.0003863,15]
[420367769,1776041550228,-2221.27,0.0003863,15]
[420367770,1776041550238,-500.0,0.0003863,15]
[420367771,1776041550263,-1447.93,0.0003863,15]
[420367772,1776041550274,-500.0,0.0003863,15]
[420367773,1776041550285,-500.0,0.0003863,15]
[420367774,1776041550307,-819.82,0.0003863,15]
[420367775,1776041550329,-739.29,0.0003863,15]
[420367776,1776041550343,-500.0,0.0003863,15]
[420367777,1776041550365,-1481.69,0.0003863,15]
[420367778,1776041550391,-639.79399751,0.0003863,15]
[420367779,1776041550402,-500.0,0.0003863,15]
[420367780,1776041550421,-500.0,0.0003863,15]
[420367781,1776041550439,-500.0,0.0003863,15]
[420367782,1776041550453,-1386.95,0.0003863,15]
[420367783,1776041550465,-500.0,0.0003863,15]
[420367784,1776041550481,-504.87,0.0003863,15]
[420367785,1776041550510,-1307.69,0.0003863,15]
[420367786,1776041550521,-500.0,0.0003863,15]
[420367787,1776041550539,-500.0,0.0003863,15]
[420367788,1776041550553,-500.0,0.0003863,15]
[420367789,1776041550565,-632.93,0.0003863,15]
[420367790,1776041550595,-491.55425561,0.0003863,15]
[420367791,1776041550605,-500.0,0.0003863,15]
[420367792,1776041550617,-500.0,0.0003863,15]
[420367793,1776041550657,-500.0,0.0003863,15]
[420367794,1776041550671,-500.0,0.0003863,15]
[420367795,1776041550698,-2461.87,0.0003863,15]
[420367796,1776041550709,-500.0,0.0003863,14]
[420367797,1776041550733,-500.0,0.0003863,5]
[420367798,1776041550760,-644.51,0.0003863,15]
[420367799,1776041550773,-507.35,0.0003863,15]
[420367800,1776041550806,-1333.0,0.0003863,15]
[420367801,1776041550819,-514.94975197,0.0003863,15]
[420367802,1776041550855,-1064.34,0.0003863,15]
[420367803,1776041550871,-761.34,0.0003863,15]
[420367804,1776041550900,-1670.47,0.0003863,15]
[420367805,1776041550918,-500.0,0.0003863,15]
[420367806,1776041550946,-1111.33,0.0003863,15]
[420367807,1776041550962,-500.0,0.0003863,15]
[420367808,1776041550990,-500.0,0.0003863,15]
[420367809,1776041551003,-808.18,0.0003863,15]
[420367810,1776041551033,-548.68,0.0003863,15]
[420367811,1776041551049,-500.0,0.0003863,15]
[420367812,1776041551074,-921.66,0.0003863,15]
[420367813,1776041551089,-500.0,0.0003863,15]
[420367814,1776041551107,-500.0,0.0003863,15]
[420367815,1776041551119,-500.0,0.0003863,15]
[420367816,1776041551133,-500.0,0.0003863,15]
[420367817,1776041551149,-596.09662981,0.0003863,15]
[420367818,1776041551162,-500.0,0.0003863,15]
[420367819,1776041551177,-500.0,0.0003863,15]
[420367820,1776041551191,-1561.09,0.0003863,15]
[420367821,1776041551203,-500.0,0.0003863,15]
[420367822,1776041551216,-205.20028313,0.0003863,15]
[420367823,1776041551238,-1822.44,0.0003863,15]
[420367824,1776041551253,-500.0,0.0003863,15]
[420367825,1776041551265,-500.0,0.0003863,15]
[420367826,1776041551285,-500.0,0.0003863,15]
[420367827,1776041551301,-887.2,0.0003863,15]
[420367828,1776041551311,-810.27,0.0003863,10]
[420367829,1776041551335,-1212.99,0.0003863,15]
[420367830,1776041551348,-500.0,0.0003863,15]
[420367831,1776041551369,-1687.08,0.0003863,15]
[420367832,1776041551386,-500.0,0.0003863,15]
[420367833,1776041551399,-836.17,0.0003863,15]
[420367834,1776041551423,-500.0,0.0003863,15]
[420367835,1776041551459,-500.0,0.0003863,15]
[420367836,1776041551475,-616.32,0.0003863,15]
[420367837,1776041551539,-271.48013538,0.0003863,15]
[420367838,1776041551556,-500.0,0.0003863,15]
[420367839,1776041551566,-500.0,0.0003863,15]
[420367840,1776041551613,-500.0,0.0003863,15]
[420367841,1776041551647,-500.0,0.0003863,15]
[420367842,1776041551676,-500.0,0.0003863,15]
[420367843,1776041551687,-500.0,0.0003863,15]
[420367844,1776041551714,-990.96,0.0003863,15]
[420367845,1776041551725,-500.0,0.0003863,15]
[420367846,1776041551735,-500.0,0.0003863,15]
[420367847,1776041551762,-500.0,0.0003863,15]
[420367848,1776041551773,-1300.76,0.0003863,15]
[420367849,1776041551783,-636.59,0.0003863,15]
[420367850,1776041551802,-500.0,0.0003863,15]
[420367851,1776041551812,-500.0,0.0003863,15]
[420367852,1776041551823,-1007.92,0.0003863,15]
[420367853,1776041551847,-500.0,0.0003863,15]
[420367854,1776041551858,-500.0,0.0003863,15]
[420367855,1776041551872,-1138.59,0.0003863,15]
[420367856,1776041551883,-1730.4,0.0003863,15]
[420367857,1776041551894,-1000.31,0.0003863,15]
[420367858,1776041551910,-903.84,0.0003863,15]
[420367859,1776041551923,-619.67,0.0003863,15]
[420367860,1776041551941,-500.0,0.0003863,15]
[420367861,1776041551952,-500.0,0.0003863,15]
[420367862,1776041551971,-1778.75,0.0003863,15]
[420367863,1776041551989,-1153.37,0.0003863,15]
[420367864,1776041552000,-1092.35,0.0003863,15]
[420367865,1776041552011,-500.0,0.0003863,15]
[420367866,1776041552030,-500.0,0.0003863,15]
[420367867,1776041552041,-500.0,0.0003863,15]
[420367868,1776041552053,-500.0,0.0003863,15]
[420367869,1776041552071,-500.0,0.0003863,15]
[420367870,1776041552081,-500.0,0.0003863,15]
[420367871,1776041552092,-500.0,0.0003863,15]
[420367872,1776041552110,-1843.04,0.0003863,15]
[420367873,1776041552120,-500.0,0.0003863,15]
[420367874,1776041552131,-500.0,0.0003863,15]
[420367875,1776041552142,-575.4391235,0.0003863,15]
[420367876,1776041552162,-500.0,0.0003863,15]
[420367877,1776041552173,-500.0,0.0003863,15]
[420367878,1776041552185,-503.0,0.0003863,15]
[420367879,1776041552207,-500.0,0.0003863,15]
[420367880,1776041552220,-500.0,0.0003863,15]
[420367881,1776041552240,-656.69,0.0003863,15]
[420367882,1776041552252,-500.0,0.0003863,15]
[420367883,1776041552264,-500.0,0.0003863,15]
[420367884,1776041552283,-1937.81,0.0003863,15]
[420367885,1776041552295,-357.67968871,0.0003863,15]
[420367886,1776041552314,-500.0,0.0003863,15]
[420367887,1776041552325,-754.33,0.0003863,15]
[420367888,1776041552339,-500.0,0.0003863,15]
[420367889,1776041552354,-1714.04,0.0003863,15]
[420367890,1776041552365,-1292.76,0.0003863,15]
[420367891,1776041552378,-500.0,0.0003863,15]
[420367892,1776041552394,-500.0,0.0003863,15]
[420367893,1776041552407,-500.0,0.0003863,15]
[420367894,1776041552418,-1586.56,0.0003863,15]
[420367895,1776041552438,-500.0,0.0003863,15]
[420367896,1776041552459,-500.0,0.0003863,15]
[420367897,1776041552477,-500.0,0.0003863,15]
[420367898,1776041552490,-531.5,0.0003863,15]
[420367899,1776041552513,-1395.23,0.0003863,15]
[420367900,1776041552538,-1508.28,0.0003863,15]
[420367901,1776041552550,-1383.28,0.0003863,15]
[420367902,1776041552566,-500.0,0.0003863,15]
[420367903,1776041552579,-1557.25,0.0003863,15]
[420367904,1776041552591,-521.36,0.0003863,15]
[420367905,1776041552604,-500.0,0.0003863,15]
[420367906,1776041552622,-1577.69,0.0003863,15]
[420367907,1776041552638,-2158.93,0.0003863,15]
[420367908,1776041552667,-383.69832438,0.0003863,15]
[420367909,1776041552680,-933.09,0.0003863,15]
[420367910,1776041552699,-805.64,0.0003863,15]
[420367911,1776041552713,-551.92,0.0003863,15]
[420367912,1776041552729,-781.58,0.0003863,15]
[420367913,1776041552756,-500.0,0.0003863,15]
[420367914,1776041552770,-500.0,0.0003863,15]
[420367915,1776041552788,-1216.47,0.0003863,15]
[420367916,1776041552816,-500.0,0.0003863,15]
[420367917,1776041552834,-500.0,0.0003863,15]
[420367918,1776041552846,-500.0,0.0003863,15]
[420367919,1776041553299,-500.0,0.0003863,15]
[420367920,1776041553319,-500.0,0.0003863,15]
[420367921,1776041553345,-1203.91,0.0003863,15]
[420367922,1776041553359,-500.0,0.0003863,15]
[420367923,1776041553378,-665.94,0.0003863,15]
[420367924,1776041553390,-500.0,0.0003863,15]
[420367925,1776041553403,-1346.41,0.0003863,15]
[420367926,1776041553416,-500.0,0.0003863,15]
[420367927,1776041553428,-500.0,0.0003863,15]
[420367928,1776041553438,-500.0,0.0003863,15]
[420367929,1776041553451,-500.0,0.0003863,15]
[420367930,1776041553463,-3502.27,0.0003863,15]
[420367931,1776041553486,-1160.63,0.0003863,15]
[420367932,1776041553495,-500.0,0.0003863,15]
[420367933,1776041553504,-500.0,0.0003863,15]
[420367934,1776041553526,-2492.69,0.0003863,15]
[420367935,1776041553537,-812.32,0.0003863,15]
[420367936,1776041553547,-500.0,0.0003863,15]
[420367937,1776041553568,-500.0,0.0003863,15]
[420367938,1776041553578,-713.05,0.0003863,15]
[420367939,1776041553587,-2542.2,0.0003863,15]
[420367940,1776041553601,-500.0,0.0003863,15]
[420367941,1776041553628,-513.27,0.0003863,15]
[420367942,1776041553638,-500.0,0.0003863,15]
[420367943,1776041553652,-500.0,0.0003863,15]
[420367944,1776041553673,-857.17,0.0003863,15]
[420367945,1776041553683,-767.53,0.0003863,15]
[420367946,1776041553697,-1949.22,0.0003863,15]
[420367947,1776041553729,-500.0,0.0003863,15]
[420367948,1776041553740,-500.0,0.0003863,15]
[420367949,1776041553754,-2000.83,0.0003863,15]
[420367950,1776041553772,-1020.08,0.0003863,15]
[420367951,1776041553784,-671.18,0.0003863,15]
[420367952,1776041553798,-500.0,0.0003863,15]
[420367953,1776041553818,-500.0,0.0003863,15]
[420367954,1776041553829,-649.63212645,0.0003863,15]
[420367955,1776041553843,-1814.36,0.0003863,15]
[420367956,1776041553859,-500.0,0.0003863,15]
[420367957,1776041553880,-500.0,0.0003863,15]
[420367958,1776041553892,-2557.75,0.0003863,15]
[420367959,1776041553902,-1239.9,0.0003863,15]
[420367960,1776041553918,-500.0,0.0003863,15]
[420367961,1776041553934,-1024.03,0.0003863,15]
[420367962,1776041553943,-2033.34,0.0003863,15]
[420367963,1776041553953,-1654.08,0.0003863,15]
[420367964,1776041553970,-500.0,0.0003863,15]
[420367965,1776041553981,-433.05956683,0.0003863,15]
[420367966,1776041553990,-500.0,0.0003863,15]
[420367967,1776041554005,-500.0,0.0003863,15]
[420367968,1776041554018,-500.0,0.0003863,15]
[420367969,1776041554029,-1913.26,0.0003863,15]
[420367970,1776041554039,-500.0,0.0003863,15]
[420367971,1776041554053,-2148.07,0.0003863,15]
[420367972,1776041554065,-500.0,0.0003863,15]
[420367973,1776041554075,-500.0,0.0003863,15]
[420367974,1776041554092,-1846.32,0.0003863,15]
[420367975,1776041554102,-500.0,0.0003863,15]
[420367976,1776041554113,-500.0,0.0003863,15]
[420367977,1776041554123,-500.0,0.0003863,15]
[420367978,1776041554145,-1029.57,0.0003863,15]
[420367979,1776041554154,-500.0,0.0003863,15]
[420367980,1776041554164,-627.92708645,0.0003863,15]
[420367981,1776041554192,-515.85,0.0003863,15]
[420367982,1776041554202,-667.8,0.0003863,15]
[420367983,1776041554215,-1978.02,0.0003863,15]
[420367984,1776041554242,-500.0,0.0003863,15]
[420367985,1776041554276,-500.0,0.0003863,15]
[420367986,1776041554293,-500.0,0.0003863,15]
[420367987,1776041554344,-500.0,0.0003863,15]
[420367988,1776041554353,-1195.42,0.0003863,15]
[420367989,1776041554370,-500.0,0.0003863,15]
[420367990,1776041554387,-500.0,0.0003863,15]
[420367991,1776041554397,-2182.18,0.0003863,15]
[420367992,1776041554424,-500.0,0.0003863,15]
[420367993,1776041554433,-2335.03,0.0003863,15]
[420367994,1776041554446,-416.58368801,0.0003863,15]
[420367995,1776041554460,-1212.24,0.0003863,15]
[420367996,1776041554469,-500.0,0.0003863,15]
[420367997,1776041554479,-500.0,0.0003863,15]
[420367998,1776041554491,-1419.56,0.0003863,15]
[420367999,1776041554503,-500.0,0.0003863,15]
[420368000,1776041554513,-1692.69,0.0003863,15]
[420368001,1776041554522,-606.26,0.0003863,15]
[420368002,1776041554533,-500.0,0.0003863,15]
[420368003,1776041554544,-500.0,0.0003863,15]
[420368004,1776041554554,-500.0,0.0003863,15]
[420368005,1776041554570,-884.21,0.0003863,15]
[420368006,1776041554581,-500.0,0.0003863,15]
[420368007,1776041554591,-500.0,0.0003863,15]
[420368008,1776041554605,-500.0,0.0003863,15]
[420368009,1776041554619,-500.0,0.0003863,15]
[420368010,1776041554642,-500.0,0.0003863,15]
[420368011,1776041554653,-1649.72,0.0003863,15]
[420368012,1776041554678,-500.0,0.0003863,15]
[420368013,1776041554703,-621.97,0.0003863,15]
[420368014,1776041554714,-559.48,0.0003863,15]
[420368015,1776041554729,-1537.45,0.0003863,15]
[420368016,1776041554748,-500.0,0.0003863,15]
[420368017,1776041554783,-1130.48,0.0003863,15]
[420368018,1776041554818,-500.0,0.0003863,15]
[420368019,1776041554828,-500.0,0.0003863,15]
[420368020,1776041554856,-540.5227571,0.0003863,15]
[420368021,1776041554866,-870.95,0.0003863,15]
[420368022,1776041554893,-500.0,0.0003863,15]
[420368023,1776041554903,-500.0,0.0003863,15]
[420368024,1776041554914,-500.0,0.0003863,15]
[420368025,1776041554924,-706.59,0.0003863,15]
[420368026,1776041554940,-687.5,0.0003863,15]
[420368027,1776041554950,-629.42,0.0003863,15]
[420368028,1776041554962,-500.0,0.0003863,15]
[420368029,1776041554979,-500.0,0.0003863,15]
[420368030,1776041555002,-500.0,0.0003863,15]
[420368031,1776041555022,-1620.29,0.0003863,15]
[420368032,1776041555032,-2507.84,0.0003863,15]
[420368033,1776041555043,-730.08,0.0003863,15]
[420368034,1776041555057,-500.0,0.0003863,15]
[420368035,1776041555076,-500.0,0.0003863,15]
[420368036,1776041555086,-1791.97,0.0003863,15]
[420368037,1776041555097,-620.62,0.0003863,15]
[420368038,1776041555111,-5639.6,0.0003863,15]
[420368039,1776041555130,-500.0,0.0003863,15]
[420368040,1776041555139,-595.83,0.0003863,15]
[420368041,1776041555148,-500.0,0.0003863,15]
[420368042,1776041555157,-532.56,0.0003863,15]
[420368043,1776041555176,-500.0,0.0003863,15]
[420368044,1776041555191,-791.1,0.0003863,15]
[420368045,1776041555200,-1272.74,0.0003863,15]
[420368046,1776041555210,-689.29,0.0003863,15]
[420368047,1776041555226,-500.0,0.0003863,15]
[420368048,1776041555235,-507.04,0.0003863,15]
[420368049,1776041555244,-500.0,0.0003863,15]
[420368050,1776041555254,-774.01,0.0003863,15]
[420368051,1776041555274,-1988.49,0.0003863,15]
[420368052,1776041555288,-500.0,0.0003863,15]
[420368053,1776041555297,-1059.84,0.0003863,15]
[420368054,1776041555308,-500.0,0.0003863,15]
[420368055,1776041555321,-500.0,0.0003863,15]
[420368056,1776041555331,-500.0,0.0003863,15]
[420368057,1776041555355,-309.24989185,0.0003863,15]
[420368058,1776041555364,-525.86,0.0003863,15]
[420368059,1776041555374,-1410.63,0.0003863,15]
[420368060,1776041555394,-2601.05,0.0003863,15]
[420368061,1776041555403,-1360.07,0.0003863,15]
[420368062,1776041555416,-500.0,0.0003863,15]
[420368063,1776041555430,-500.0,0.0003863,15]
[420368064,1776041555449,-500.0,0.0003863,15]
[420368065,1776041555459,-500.0,0.0003863,15]
[420368066,1776041555470,-544.4,0.0003863,15]
[420368067,1776041555492,-500.0,0.0003863,15]
[420368068,1776041555502,-598.45754978,0.0003863,15]
[420368069,1776041555511,-2602.21,0.0003863,15]
[420368070,1776041555534,-500.0,0.0003863,15]
[420368071,1776041555552,-1246.17,0.0003863,15]
[420368072,1776041555562,-545.0,0.0003863,15]
[420368073,1776041555573,-1431.19,0.0003863,15]
[420368074,1776041555593,-910.09,0.0003863,15]